[Event "*** Titled Tuesday 3|2 Blitz"]
[Site "Chess.com"]
[Date "2015.05.05"]
[Round "6"]
[White "Kacparov"]
[Black "megarompa"]
[Result "1/2-1/2"]
[WhiteElo "2461"]
[BlackElo "2662"]
[TimeControl "180+2"]
[EndTime "12:21:56 PDT"]
[Termination "Game drawn by repetition"]

1. e4 {[%clk 0:03:01.9]} 1... e5 {[%clk 0:02:59.5]} 2. Nf3 {[%clk 0:03:02.8]}
2... Nc6 {[%clk 0:03:01.2]} 3. Bc4 {[%clk 0:03:03.3]} 3... Nf6 {[%clk
0:02:59.2]} 4. d3 {[%clk 0:03:03.9]} 4... Be7 {[%clk 0:02:58]} 5. c3 {[%clk
0:03:05.1]} 5... O-O {[%clk 0:02:59.1]} 6. Bb3 {[%clk 0:03:05.4]} 6... d5 {[%clk
0:02:53.4]} 7. Qe2 {[%clk 0:03:05.2]} 7... Bg4 {[%clk 0:02:51.3]} 8. Nbd2 {[%clk
0:02:59.3]} 8... a5 {[%clk 0:02:49.9]} 9. h3 {[%clk 0:02:53.7]} 9... Be6 {[%clk
0:02:47.9]} 10. Nf1 {[%clk 0:02:48.2]} 10... a4 {[%clk 0:02:44]} 11. Bc2 {[%clk
0:02:48.8]} 11... a3 {[%clk 0:02:41.6]} 12. b4 {[%clk 0:02:44.3]} 12... d4
{[%clk 0:02:26.9]} 13. b5 {[%clk 0:02:44.7]} 13... Na7 {[%clk 0:02:25.8]} 14. c4
{[%clk 0:02:42]} 14... c6 {[%clk 0:02:26.8]} 15. Nxe5 {[%clk 0:02:08.3]} 15...
cxb5 {[%clk 0:02:26.5]} 16. Ng3 {[%clk 0:01:31.7]} 16... bxc4 {[%clk 0:02:23.5]}
17. Nxc4 {[%clk 0:01:29.6]} 17... b5 {[%clk 0:02:10.7]} 18. Nd2 {[%clk
0:01:27.7]} 18... Rc8 {[%clk 0:02:10]} 19. Bb3 {[%clk 0:01:16.3]} 19... b4
{[%clk 0:02:11.1]} 20. O-O {[%clk 0:01:15.6]} 20... Nb5 {[%clk 0:02:07]} 21. Nc4
{[%clk 0:01:13.9]} 21... Nc3 {[%clk 0:02:05.3]} 22. Qf3 {[%clk 0:01:15]} 22...
Rc5 {[%clk 0:01:59.7]} 23. Bf4 {[%clk 0:01:08.6]} 23... Nd7 {[%clk 0:01:54.5]}
24. Rfe1 {[%clk 0:00:59.7]} 24... Bxc4 {[%clk 0:01:54.7]} 25. Bxc4 {[%clk
0:01:00.1]} 25... Bg5 {[%clk 0:01:45.9]} 26. Bd6 {[%clk 0:00:42.9]} 26... Ne5
{[%clk 0:01:44.8]} 27. Bxe5 {[%clk 0:00:44.1]} 27... Rxe5 {[%clk 0:01:40.5]} 28.
Nf5 {[%clk 0:00:44.6]} 28... g6 {[%clk 0:01:34.9]} 29. Qg3 {[%clk 0:00:42.6]}
29... Ra5 {[%clk 0:01:31.8]} 30. Nd6 {[%clk 0:00:36.4]} 30... Qe7 {[%clk
0:01:19.8]} 31. Nxf7 {[%clk 0:00:34.2]} 31... Rxf7 {[%clk 0:01:18.1]} 32. Qb8+
{[%clk 0:00:34.5]} 32... Kg7 {[%clk 0:01:18]} 33. Bxf7 {[%clk 0:00:30.1]} 33...
Kxf7 {[%clk 0:01:17.8]} 34. e5 {[%clk 0:00:28.2]} 34... Kg7 {[%clk 0:01:07.1]}
35. e6 {[%clk 0:00:29.1]} 35... Rc5 {[%clk 0:00:59.8]} 36. Qxb4 {[%clk
0:00:25.4]} 36... Rd5 {[%clk 0:01:01]} 37. Qc4 {[%clk 0:00:18.2]} 37... Bf6
{[%clk 0:01:01.4]} 38. Rac1 {[%clk 0:00:17.3]} 38... Rc5 {[%clk 0:00:58.9]} 39.
Qb3 {[%clk 0:00:16.6]} 39... Ne2+ {[%clk 0:00:59.9]} 40. Rxe2 {[%clk 0:00:15.8]}
40... Rxc1+ {[%clk 0:01:00.3]} 41. Kh2 {[%clk 0:00:17.1]} 41... Rc7 {[%clk
0:00:53.8]} 42. g3 {[%clk 0:00:17.7]} 42... h5 {[%clk 0:00:54.5]} 43. h4 {[%clk
0:00:18]} 43... Rb7 {[%clk 0:00:53.3]} 44. Qd5 {[%clk 0:00:12.9]} 44... Rb2
{[%clk 0:00:50.8]} 45. Rxb2 {[%clk 0:00:13.5]} 45... axb2 {[%clk 0:00:52.7]} 46.
Qb3 {[%clk 0:00:14.7]} 46... Qxe6 {[%clk 0:00:49]} 47. Qxb2 {[%clk 0:00:15.6]}
47... Qf5 {[%clk 0:00:46.4]} 48. Qe2 {[%clk 0:00:14.9]} 48... Kf7 {[%clk
0:00:41.7]} 49. Kg2 {[%clk 0:00:16.2]} 49... Qd5+ {[%clk 0:00:39.7]} 50. Kh2
{[%clk 0:00:17.3]} 50... Be7 {[%clk 0:00:36.9]} 51. Kg1 {[%clk 0:00:18]} 51...
Bf6 {[%clk 0:00:32.7]} 52. Kh2 {[%clk 0:00:19.3]} 52... Kg7 {[%clk 0:00:33.4]}
53. Kg1 {[%clk 0:00:20.5]} 53... Qc6 {[%clk 0:00:32]} 54. Kh2 {[%clk 0:00:21.2]}
54... Qa6 {[%clk 0:00:30.6]} 55. Kg2 {[%clk 0:00:21.7]} 55... Qa4 {[%clk
0:00:28]} 56. Kh2 {[%clk 0:00:22.5]} 56... Qc6 {[%clk 0:00:26.3]} 57. Kg1 {[%clk
0:00:23.5]} 57... Qd6 {[%clk 0:00:27.2]} 58. Kg2 {[%clk 0:00:24.1]} 58... Be7
{[%clk 0:00:28]} 59. Kg1 {[%clk 0:00:24.8]} 59... Kf7 {[%clk 0:00:25.5]} 60. Kg2
{[%clk 0:00:25.9]} 60... Bf6 {[%clk 0:00:26.8]} 61. Kg1 {[%clk 0:00:27.1]} 61...
Qd5 {[%clk 0:00:26.7]} 62. Kh2 {[%clk 0:00:27.8]} 62... Be5 {[%clk 0:00:28]} 63.
Kg1 {[%clk 0:00:28]} 63... Bd6 {[%clk 0:00:29.5]} 64. Kh2 {[%clk 0:00:28.1]}
64... Qe6 {[%clk 0:00:31.1]} 65. Qf3+ {[%clk 0:00:24.4]} 65... Qf6 {[%clk
0:00:32.1]} 66. Qd5+ {[%clk 0:00:21.5]} 66... Kg7 {[%clk 0:00:33]} 67. Kg2
{[%clk 0:00:21.8]} 67... Bf8 {[%clk 0:00:29.7]} 68. Qe4 {[%clk 0:00:21.1]} 68...
Be7 {[%clk 0:00:28.1]} 69. Qd5 {[%clk 0:00:21]} 69... Qd6 {[%clk 0:00:28.5]} 70.
Qe4 {[%clk 0:00:21.4]} 70... Bf6 {[%clk 0:00:29.9]} 71. Qe2 {[%clk 0:00:22.2]}
71... Qd5+ {[%clk 0:00:30.4]} 72. Kh2 {[%clk 0:00:23.5]} 72... Qf5 {[%clk
0:00:29.7]} 73. Kg2 {[%clk 0:00:24]} 73... g5 {[%clk 0:00:31.2]} 74. hxg5 {[%clk
0:00:18.1]} 74... Qxg5 {[%clk 0:00:31.9]} 75. Qe4 {[%clk 0:00:16.8]} 75... Kh6
{[%clk 0:00:31.6]} 76. a4 {[%clk 0:00:16.8]} 76... Qc5 {[%clk 0:00:31.2]} 77.
Qf4+ {[%clk 0:00:16.7]} 77... Kg7 {[%clk 0:00:32.4]} 78. Qe4 {[%clk 0:00:16.7]}
78... Qg5 {[%clk 0:00:31.8]} 79. Qb7+ {[%clk 0:00:16.8]} 79... Kh6 {[%clk
0:00:32.7]} 80. Qe4 {[%clk 0:00:18.3]} 80... h4 {[%clk 0:00:32.4]} 81. Qxh4+
{[%clk 0:00:14.9]} 81... Qxh4 {[%clk 0:00:33.6]} 82. gxh4 {[%clk 0:00:16.2]}
82... Kg6 {[%clk 0:00:29.6]} 83. h5+ {[%clk 0:00:14.9]} 83... Kxh5 {[%clk
0:00:30.6]} 84. Kf3 {[%clk 0:00:16.3]} 84... Bd8 {[%clk 0:00:31.7]} 85. Ke4
{[%clk 0:00:17.4]} 85... Bb6 {[%clk 0:00:31.4]} 86. a5 {[%clk 0:00:16.7]} 86...
Ba7 {[%clk 0:00:32.1]} 87. Kd5 {[%clk 0:00:17.9]} 87... Kg4 {[%clk 0:00:33.7]}
88. Kc6 {[%clk 0:00:11.7]} 88... Kf3 {[%clk 0:00:35]} 89. Kb7 {[%clk 0:00:12.9]}
89... Bc5 {[%clk 0:00:36.2]} 90. Kc6 {[%clk 0:00:14.1]} 90... Ba7 {[%clk
0:00:34.4]} 91. Kb7 {[%clk 0:00:15.3]} 91... Bc5 {[%clk 0:00:24.2]} 92. Kc6
{[%clk 0:00:16.2]} 92... Ba7 {[%clk 0:00:24.2]} 93. Kb7 {[%clk 0:00:17]} 1/2-1/2

[Event "*** Titled Tuesday 3|2 Blitz"]
[Site "Chess.com"]
[Date "2015.05.05"]
[Round "7"]
[White "chessloveyou"]
[Black "iaraldinho"]
[Result "0-1"]
[WhiteElo "2097"]
[BlackElo "2295"]
[TimeControl "180+2"]
[EndTime "12:25:06 PDT"]
[Termination "iaraldinho won by resignation"]

1. Nf3 {[%clk 0:03:01.9]} 1... f5 {[%clk 0:03:01.1]} 2. g3 {[%clk 0:03:02.6]}
2... Nf6 {[%clk 0:03:00.9]} 3. Bg2 {[%clk 0:03:03.3]} 3... g6 {[%clk 0:03:02.5]}
4. O-O {[%clk 0:03:03.3]} 4... Bg7 {[%clk 0:03:04.2]} 5. c4 {[%clk 0:03:03]}
5... O-O {[%clk 0:03:05.9]} 6. d4 {[%clk 0:03:04.9]} 6... d6 {[%clk 0:03:07.6]}
7. Nc3 {[%clk 0:03:03.9]} 7... Qe8 {[%clk 0:03:08.5]} 8. e3 {[%clk 0:03:04.9]}
8... a5 {[%clk 0:03:01.8]} 9. Nd2 {[%clk 0:03:04.5]} 9... c6 {[%clk 0:02:59.7]}
10. e4 {[%clk 0:03:01.8]} 10... e5 {[%clk 0:02:58.1]} 11. dxe5 {[%clk
0:02:58.1]} 11... dxe5 {[%clk 0:02:58.4]} 12. exf5 {[%clk 0:02:57.4]} 12... gxf5
{[%clk 0:02:59.4]} 13. Nf3 {[%clk 0:02:57.8]} 13... e4 {[%clk 0:03:00.2]} 14.
Nd4 {[%clk 0:02:58.5]} 14... Qf7 {[%clk 0:02:59]} 15. Bf4 {[%clk 0:02:54.9]}
15... Rd8 {[%clk 0:02:59.2]} 16. Nce2 {[%clk 0:02:51.6]} 16... c5 {[%clk
0:03:00.3]} 0-1

[Event "*** Titled Tuesday 3|2 Blitz"]
[Site "Chess.com"]
[Date "2015.05.05"]
[Round "7"]
[White "desxmchna"]
[Black "llamalord42"]
[Result "1-0"]
[WhiteElo "2169"]
[BlackElo "2211"]
[TimeControl "180+2"]
[EndTime "12:26:09 PDT"]
[Termination "desxmchna won by resignation"]

1. d4 {[%clk 0:02:57.5]} 1... Nf6 {[%clk 0:03:00]} 2. c4 {[%clk 0:02:55.9]} 2...
g6 {[%clk 0:03:01]} 3. Nc3 {[%clk 0:02:57.1]} 3... Bg7 {[%clk 0:03:02.3]} 4. e4
{[%clk 0:02:57.9]} 4... d6 {[%clk 0:03:04]} 5. Nf3 {[%clk 0:02:59.4]} 5... O-O
{[%clk 0:03:03.7]} 6. Be2 {[%clk 0:03:01]} 6... e5 {[%clk 0:03:03.7]} 7. O-O
{[%clk 0:03:02.7]} 7... Nc6 {[%clk 0:03:04.9]} 8. d5 {[%clk 0:03:04.3]} 8... Ne7
{[%clk 0:03:06.2]} 9. Ne1 {[%clk 0:03:06.2]} 9... Nd7 {[%clk 0:03:07.1]} 10. Be3
{[%clk 0:03:07.9]} 10... f5 {[%clk 0:03:08.7]} 11. f3 {[%clk 0:03:09.6]} 11...
f4 {[%clk 0:03:10.4]} 12. Bf2 {[%clk 0:03:11.4]} 12... g5 {[%clk 0:03:12.1]} 13.
Rc1 {[%clk 0:03:13.1]} 13... Ng6 {[%clk 0:03:13.4]} 14. c5 {[%clk 0:03:14]}
14... Nf6 {[%clk 0:03:11.9]} 15. cxd6 {[%clk 0:03:12]} 15... cxd6 {[%clk
0:03:13.5]} 16. Nb5 {[%clk 0:03:13]} 16... Rf7 {[%clk 0:03:13.7]} 17. Nxa7
{[%clk 0:03:13.5]} 17... Bd7 {[%clk 0:03:14.2]} 18. Qb3 {[%clk 0:03:14.1]} 18...
g4 {[%clk 0:03:14.2]} 19. Bb6 {[%clk 0:03:07.4]} 19... Qe8 {[%clk 0:03:08.9]}
20. Nb5 {[%clk 0:03:04.2]} 20... Qe7 {[%clk 0:02:54.4]} 21. Nc7 {[%clk
0:02:59.1]} 21... g3 {[%clk 0:02:54.6]} 22. h3 {[%clk 0:02:44.8]} 22... Bxh3
{[%clk 0:02:46.2]} 23. gxh3 {[%clk 0:02:45.1]} 1-0

[Event "*** Titled Tuesday 3|2 Blitz"]
[Site "Chess.com"]
[Date "2015.05.05"]
[Round "7"]
[White "pKiLz5Rn9b"]
[Black "salomez"]
[Result "1-0"]
[WhiteElo "2264"]
[BlackElo "2139"]
[TimeControl "180+2"]
[EndTime "12:28:02 PDT"]
[Termination "pKiLz5Rn9b won by resignation"]

1. e4 {[%clk 0:03:01.9]} 1... c5 {[%clk 0:03:00.3]} 2. c3 {[%clk 0:03:03]} 2...
Nf6 {[%clk 0:02:58.3]} 3. e5 {[%clk 0:03:03.7]} 3... Nd5 {[%clk 0:02:59.3]} 4.
d4 {[%clk 0:03:05.2]} 4... cxd4 {[%clk 0:03:00.9]} 5. cxd4 {[%clk 0:03:06.5]}
5... d6 {[%clk 0:03:02.5]} 6. Nf3 {[%clk 0:03:08.1]} 6... Nc6 {[%clk 0:03:03.3]}
7. Bc4 {[%clk 0:03:07.3]} 7... Nb6 {[%clk 0:03:03.8]} 8. Bb5 {[%clk 0:03:08.4]}
8... dxe5 {[%clk 0:03:04.4]} 9. Nxe5 {[%clk 0:03:10]} 9... Bd7 {[%clk 0:03:06]}
10. Nxd7 {[%clk 0:03:11.5]} 10... Qxd7 {[%clk 0:03:04.2]} 11. Nc3 {[%clk
0:03:12.9]} 11... e6 {[%clk 0:03:02.8]} 12. O-O {[%clk 0:03:13.4]} 12... Be7
{[%clk 0:03:03.3]} 13. Qg4 {[%clk 0:03:14.2]} 13... O-O {[%clk 0:02:21.4]} 14.
Bxc6 {[%clk 0:03:15.1]} 14... bxc6 {[%clk 0:02:21.6]} 15. Bh6 {[%clk 0:03:16.7]}
15... Bf6 {[%clk 0:02:21.6]} 16. Rfd1 {[%clk 0:03:17.7]} 16... Kh8 {[%clk
0:02:10.6]} 17. Ne4 {[%clk 0:03:15.7]} 17... Rg8 {[%clk 0:01:33.9]} 18. Qh5
{[%clk 0:03:04.3]} 18... Bxd4 {[%clk 0:01:27.3]} 19. Be3 {[%clk 0:02:59.6]}
19... e5 {[%clk 0:01:16.9]} 20. Ng5 {[%clk 0:02:59.3]} 20... h6 {[%clk
0:01:10.8]} 21. Nxf7+ {[%clk 0:03:00.5]} 21... Kh7 {[%clk 0:01:12]} 22. Nxe5
{[%clk 0:03:01.1]} 22... g6 {[%clk 0:00:31.7]} 23. Nxd7 {[%clk 0:02:58.2]} 23...
gxh5 {[%clk 0:00:30.8]} 24. Rxd4 {[%clk 0:02:59.4]} 1-0

[Event "*** Titled Tuesday 3|2 Blitz"]
[Site "Chess.com"]
[Date "2015.05.05"]
[Round "7"]
[White "destroyer305"]
[Black "Rijeka1999"]
[Result "0-1"]
[WhiteElo "2148"]
[BlackElo "2215"]
[TimeControl "180+2"]
[EndTime "12:28:15 PDT"]
[Termination "Rijeka1999 won by checkmate"]

1. e4 {[%clk 0:03:01.9]} 1... e5 {[%clk 0:02:56.3]} 2. Nf3 {[%clk 0:02:59.7]}
2... Nc6 {[%clk 0:02:56.6]} 3. d4 {[%clk 0:03:01.1]} 3... exd4 {[%clk
0:02:56.8]} 4. Bc4 {[%clk 0:03:02.8]} 4... Nf6 {[%clk 0:02:56.6]} 5. e5 {[%clk
0:03:04.3]} 5... d5 {[%clk 0:02:56.7]} 6. Bb5 {[%clk 0:03:05.9]} 6... Ne4 {[%clk
0:02:57.8]} 7. Nxd4 {[%clk 0:03:07.5]} 7... Bc5 {[%clk 0:02:58.8]} 8. Be3 {[%clk
0:03:07.1]} 8... Bd7 {[%clk 0:02:59.6]} 9. Bxc6 {[%clk 0:03:08.1]} 9... bxc6
{[%clk 0:02:59.7]} 10. O-O {[%clk 0:03:10]} 10... Qe7 {[%clk 0:03:00.6]} 11. f3
{[%clk 0:03:11.5]} 11... Nd6 {[%clk 0:03:01.5]} 12. f4 {[%clk 0:03:12.5]} 12...
Nc4 {[%clk 0:02:48.8]} 13. Bc1 {[%clk 0:03:06.2]} 13... O-O {[%clk 0:02:48.5]}
14. b3 {[%clk 0:03:06.2]} 14... Nb6 {[%clk 0:02:47.6]} 15. Bb2 {[%clk
0:03:05.9]} 15... f6 {[%clk 0:02:44.5]} 16. exf6 {[%clk 0:02:30.5]} 16... Qe3+
{[%clk 0:02:39.9]} 17. Kh1 {[%clk 0:02:30.6]} 17... Rxf6 {[%clk 0:02:40.7]} 18.
Ne2 {[%clk 0:02:06.8]} 18... Bg4 {[%clk 0:02:23.9]} 19. Bxf6 {[%clk 0:01:49.5]}
19... Bxe2 {[%clk 0:02:18.4]} 20. Qd2 {[%clk 0:00:58.4]} 20... Bxf1 {[%clk
0:02:13.8]} 21. Be5 {[%clk 0:00:47.3]} 21... Qg1# {[%clk 0:02:07.2]} 0-1

[Event "*** Titled Tuesday 3|2 Blitz"]
[Site "Chess.com"]
[Date "2015.05.05"]
[Round "7"]
[White "Enozen"]
[Black "jlandaw"]
[Result "1-0"]
[WhiteElo "2495"]
[BlackElo "2375"]
[TimeControl "180+2"]
[EndTime "12:29:37 PDT"]
[Termination "Enozen won by checkmate"]

1. d4 {[%clk 0:03:01.9]} 1... Nf6 {[%clk 0:03:00.6]} 2. Bg5 {[%clk 0:03:03]}
2... Ne4 {[%clk 0:03:01.1]} 3. h4 {[%clk 0:03:04]} 3... c5 {[%clk 0:03:01.9]} 4.
d5 {[%clk 0:03:04.8]} 4... b5 {[%clk 0:02:52.2]} 5. Nd2 {[%clk 0:02:58.3]} 5...
Qa5 {[%clk 0:02:47.7]} 6. c3 {[%clk 0:02:55.5]} 6... Nxg5 {[%clk 0:02:47.2]} 7.
hxg5 {[%clk 0:02:56.1]} 7... d6 {[%clk 0:02:47.5]} 8. e4 {[%clk 0:02:56.8]} 8...
g6 {[%clk 0:02:40.2]} 9. Ngf3 {[%clk 0:02:53.9]} 9... Bg7 {[%clk 0:02:40.3]} 10.
a4 {[%clk 0:02:52.7]} 10... b4 {[%clk 0:02:40.2]} 11. Nc4 {[%clk 0:02:50.5]}
11... Qc7 {[%clk 0:02:40.8]} 12. cxb4 {[%clk 0:02:52.1]} 12... cxb4 {[%clk
0:02:42.3]} 13. Rc1 {[%clk 0:02:51.5]} 13... Nd7 {[%clk 0:02:34.5]} 14. e5
{[%clk 0:02:17]} 14... dxe5 {[%clk 0:01:57.7]} 15. d6 {[%clk 0:02:16.1]} 15...
Qc6 {[%clk 0:01:33.1]} 16. dxe7 {[%clk 0:02:13.4]} 16... Kxe7 {[%clk 0:01:31.8]}
17. Be2 {[%clk 0:02:11.4]} 17... e4 {[%clk 0:01:22.1]} 18. Na5 {[%clk
0:02:07.4]} 18... Qe6 {[%clk 0:01:05.9]} 19. Nd4 {[%clk 0:01:29.4]} 19... Qa2
{[%clk 0:01:06.8]} 20. Ndc6+ {[%clk 0:01:26.3]} 20... Ke8 {[%clk 0:01:07.6]} 21.
Bc4 {[%clk 0:01:22.1]} 21... Qxb2 {[%clk 0:01:02.3]} 22. O-O {[%clk 0:01:22.7]}
22... h6 {[%clk 0:00:29.2]} 23. Qd5 {[%clk 0:01:21]} 23... Ne5 {[%clk
0:00:16.1]} 24. Qd8# {[%clk 0:01:19.6]} 1-0

[Event "*** Titled Tuesday 3|2 Blitz"]
[Site "Chess.com"]
[Date "2015.05.05"]
[Round "7"]
[White "Recombinant"]
[Black "MrHenriksson"]
[Result "1/2-1/2"]
[WhiteElo "2131"]
[BlackElo "2012"]
[TimeControl "180+2"]
[EndTime "12:30:14 PDT"]
[Termination "Game drawn by agreement"]

1. d4 {[%clk 0:03:01.9]} 1... c6 {[%clk 0:03:00.5]} 2. c4 {[%clk 0:03:01.7]}
2... d5 {[%clk 0:03:01]} 3. Nf3 {[%clk 0:03:02.7]} 3... Nf6 {[%clk 0:03:01.4]}
4. Nc3 {[%clk 0:03:03.4]} 4... a6 {[%clk 0:03:00.9]} 5. cxd5 {[%clk 0:03:03.8]}
5... cxd5 {[%clk 0:03:01.9]} 6. Bf4 {[%clk 0:03:04.3]} 6... Nc6 {[%clk
0:03:02.9]} 7. e3 {[%clk 0:03:05.5]} 7... Bg4 {[%clk 0:03:01]} 8. Be2 {[%clk
0:03:05.3]} 8... e6 {[%clk 0:02:59]} 9. O-O {[%clk 0:03:06.1]} 9... Bd6 {[%clk
0:02:58.9]} 10. Ne5 {[%clk 0:02:56.4]} 10... Bxe2 {[%clk 0:02:56]} 11. Qxe2
{[%clk 0:02:56.2]} 11... Bxe5 {[%clk 0:02:57]} 12. Bxe5 {[%clk 0:02:56.9]} 12...
Nxe5 {[%clk 0:02:57.2]} 13. dxe5 {[%clk 0:02:58.4]} 13... Nd7 {[%clk 0:02:56.9]}
14. f4 {[%clk 0:02:59.4]} 14... O-O {[%clk 0:02:56.7]} 15. Rfd1 {[%clk
0:02:59.5]} 15... Rc8 {[%clk 0:02:52.9]} 16. e4 {[%clk 0:02:39.9]} 16... Qb6+
{[%clk 0:02:40.5]} 17. Qf2 {[%clk 0:02:37.7]} 17... Qxf2+ {[%clk 0:02:22.5]} 18.
Kxf2 {[%clk 0:02:39.6]} 18... Nb6 {[%clk 0:02:08.3]} 19. exd5 {[%clk 0:02:34.8]}
19... Nxd5 {[%clk 0:02:09.4]} 20. Nxd5 {[%clk 0:02:33.8]} 20... exd5 {[%clk
0:02:10.1]} 21. Rd2 {[%clk 0:02:31.5]} 21... Rfd8 {[%clk 0:02:07.5]} 22. Rad1
{[%clk 0:02:31.7]} 22... Kf8 {[%clk 0:02:06.6]} 23. Ke3 {[%clk 0:02:30.4]} 23...
Rc5 {[%clk 0:02:01.6]} 24. a4 {[%clk 0:02:23.4]} 24... Ke7 {[%clk 0:02:01.1]}
25. b4 {[%clk 0:02:19.8]} 25... Rc4 {[%clk 0:01:55.1]} 26. Rd4 {[%clk
0:02:20.7]} 26... b5 {[%clk 0:01:43.4]} 27. Rxc4 {[%clk 0:01:50.5]} 27... dxc4
{[%clk 0:01:37]} 28. Rxd8 {[%clk 0:01:45.9]} 28... Kxd8 {[%clk 0:01:38.5]} 29.
axb5 {[%clk 0:01:46.8]} 29... axb5 {[%clk 0:01:39.2]} 30. g4 {[%clk 0:01:42.8]}
30... Ke7 {[%clk 0:01:30.6]} 31. Ke4 {[%clk 0:01:40]} 31... g6 {[%clk
0:01:27.1]} 32. h3 {[%clk 0:01:40.1]} 32... f6 {[%clk 0:01:15.5]} 33. exf6+
{[%clk 0:01:37.9]} 33... Kxf6 {[%clk 0:01:16.3]} 34. Kd4 {[%clk 0:01:38.7]}
34... Ke6 {[%clk 0:01:09.2]} 35. Ke4 {[%clk 0:01:38.1]} 35... Kd6 {[%clk
0:01:06.7]} 36. Kd4 {[%clk 0:01:38.9]} 36... h5 {[%clk 0:00:59.2]} 37. Ke4
{[%clk 0:01:39.3]} 37... hxg4 {[%clk 0:00:52.8]} 38. hxg4 {[%clk 0:01:40.1]}
38... Ke6 {[%clk 0:00:43.8]} 39. Kd4 {[%clk 0:01:39.3]} 39... Kf6 {[%clk
0:00:42.6]} 40. Ke4 {[%clk 0:01:40.1]} 1/2-1/2

[Event "*** Titled Tuesday 3|2 Blitz"]
[Site "Chess.com"]
[Date "2015.05.05"]
[Round "7"]
[White "Mvpag"]
[Black "AndrewMcStone"]
[Result "0-1"]
[WhiteElo "1931"]
[BlackElo "1997"]
[TimeControl "180+2"]
[EndTime "12:30:37 PDT"]
[Termination "AndrewMcStone won by resignation"]

1. d4 {[%clk 0:03:01.9]} 1... Nf6 {[%clk 0:03:00.7]} 2. Nf3 {[%clk 0:03:02.6]}
2... g6 {[%clk 0:03:01.2]} 3. e3 {[%clk 0:03:04.2]} 3... Bg7 {[%clk 0:03:02.6]}
4. Bd3 {[%clk 0:03:05.9]} 4... O-O {[%clk 0:03:03.9]} 5. O-O {[%clk 0:03:07.5]}
5... d6 {[%clk 0:03:05.4]} 6. c3 {[%clk 0:03:09.1]} 6... Re8 {[%clk 0:02:51.9]}
7. e4 {[%clk 0:03:10]} 7... e5 {[%clk 0:02:51.8]} 8. Re1 {[%clk 0:03:11.1]} 8...
c6 {[%clk 0:02:49.4]} 9. Bg5 {[%clk 0:03:11.8]} 9... Qc7 {[%clk 0:02:47.2]} 10.
Nbd2 {[%clk 0:03:09.7]} 10... Nbd7 {[%clk 0:02:40.8]} 11. Nc4 {[%clk 0:03:02.2]}
11... b5 {[%clk 0:02:36.5]} 12. Ne3 {[%clk 0:03:02.2]} 12... exd4 {[%clk
0:02:32.3]} 13. Nxd4 {[%clk 0:02:54.2]} 13... Nxe4 {[%clk 0:02:27.2]} 14. Bf4
{[%clk 0:02:50.1]} 14... Ndc5 {[%clk 0:02:07.8]} 15. Bc2 {[%clk 0:02:41]} 15...
Bb7 {[%clk 0:01:36.1]} 16. h3 {[%clk 0:02:31]} 16... Rad8 {[%clk 0:01:36.4]} 17.
a4 {[%clk 0:02:24.9]} 17... a6 {[%clk 0:01:35.8]} 18. axb5 {[%clk 0:02:23.5]}
18... axb5 {[%clk 0:01:37.7]} 19. b4 {[%clk 0:02:17.4]} 19... Ne6 {[%clk
0:01:28.3]} 20. Nxe6 {[%clk 0:01:58.6]} 20... Rxe6 {[%clk 0:01:29.4]} 21. Ra7
{[%clk 0:01:16.5]} 21... Bxc3 {[%clk 0:01:10.3]} 22. Re2 {[%clk 0:01:13.8]}
22... Bxb4 {[%clk 0:01:11.3]} 23. Ng4 {[%clk 0:01:11.1]} 23... Nc3 {[%clk
0:00:40.6]} 24. Nh6+ {[%clk 0:00:48.8]} 24... Kf8 {[%clk 0:00:28.6]} 25. Qd4
{[%clk 0:00:41.8]} 25... Nxe2+ {[%clk 0:00:29.1]} 0-1

[Event "*** Titled Tuesday 3|2 Blitz"]
[Site "Chess.com"]
[Date "2015.05.05"]
[Round "7"]
[White "AnthonyWirig"]
[Black "lukas_111111"]
[Result "1-0"]
[WhiteElo "2492"]
[BlackElo "2337"]
[TimeControl "180+2"]
[EndTime "12:30:43 PDT"]
[Termination "AnthonyWirig won by resignation"]

1. e4 {[%clk 0:03:01.9]} 1... c5 {[%clk 0:02:59.9]} 2. Nf3 {[%clk 0:03:02.4]}
2... d6 {[%clk 0:03:00.9]} 3. d4 {[%clk 0:03:03.5]} 3... cxd4 {[%clk 0:03:02.3]}
4. Nxd4 {[%clk 0:03:05.4]} 4... Nf6 {[%clk 0:03:03.4]} 5. Nc3 {[%clk 0:03:07]}
5... a6 {[%clk 0:03:04.6]} 6. f4 {[%clk 0:03:08.2]} 6... e5 {[%clk 0:03:01.2]}
7. Nf5 {[%clk 0:03:08.5]} 7... Nc6 {[%clk 0:02:52.6]} 8. Bc4 {[%clk 0:03:03.5]}
8... Be6 {[%clk 0:02:47.6]} 9. Bb3 {[%clk 0:03:00.8]} 9... Nd4 {[%clk
0:02:41.3]} 10. Nxd4 {[%clk 0:02:59.8]} 10... exd4 {[%clk 0:02:40.3]} 11. Qxd4
{[%clk 0:02:59.7]} 11... Rc8 {[%clk 0:02:38.7]} 12. Be3 {[%clk 0:02:50.9]} 12...
Ng4 {[%clk 0:02:19.5]} 13. O-O-O {[%clk 0:02:46.3]} 13... Nxe3 {[%clk
0:02:17.4]} 14. Qxe3 {[%clk 0:02:48.2]} 14... Be7 {[%clk 0:02:12.2]} 15. Kb1
{[%clk 0:02:32.1]} 15... O-O {[%clk 0:02:10.8]} 16. h4 {[%clk 0:02:24.4]} 16...
Qa5 {[%clk 0:02:09.1]} 17. f5 {[%clk 0:02:18.6]} 17... Bxb3 {[%clk 0:02:02.5]}
18. axb3 {[%clk 0:02:20.5]} 18... Bf6 {[%clk 0:01:57.4]} 19. Nd5 {[%clk
0:02:15.8]} 19... Be5 {[%clk 0:01:47.5]} 20. Ne7+ {[%clk 0:02:06.1]} 20... Kh8
{[%clk 0:01:47.6]} 21. Nxc8 {[%clk 0:02:06.3]} 21... Rxc8 {[%clk 0:01:48.9]} 22.
Rd5 {[%clk 0:02:05.3]} 22... Qc7 {[%clk 0:01:47.4]} 23. Qd3 {[%clk 0:02:05.1]}
23... Qb6 {[%clk 0:01:43.7]} 24. Rf1 {[%clk 0:02:02.5]} 24... Qd8 {[%clk
0:01:42.9]} 25. g3 {[%clk 0:02:02.1]} 25... Qf6 {[%clk 0:01:42.9]} 26. c3 {[%clk
0:01:52.8]} 26... b5 {[%clk 0:01:43.6]} 27. b4 {[%clk 0:01:50.3]} 27... Rc4
{[%clk 0:01:39.8]} 28. Rd1 {[%clk 0:01:40.1]} 28... Rc6 {[%clk 0:01:33.5]} 29.
Rc5 {[%clk 0:01:33.9]} 29... Rxc5 {[%clk 0:00:19.2]} 30. bxc5 {[%clk 0:01:33.5]}
30... b4 {[%clk 0:00:20.6]} 31. cxd6 {[%clk 0:01:32.3]} 31... bxc3 {[%clk
0:00:20]} 32. d7 {[%clk 0:01:33.4]} 32... Qd8 {[%clk 0:00:19.5]} 33. Qc4 {[%clk
0:01:29.2]} 33... c2+ {[%clk 0:00:15.3]} 34. Kxc2 {[%clk 0:01:26.7]} 34... Bc7
{[%clk 0:00:11.8]} 35. Qxf7 {[%clk 0:01:23]} 1-0